Cogmind - Beta 13 @@@ ROGUE MODE // 2024.04.29 @ 09:26:57 Player: Retknock Result: Self-destructed Performance ------------- Evolutions (1) 500 Regions Visited (2) 400 Robots Destroyed (12) 60 Value Destroyed (308) 308 Prototype IDs (0) 0 Alien Tech Used (0) 0 Bonus (0) 0 TOTAL SCORE: 1268 Bonus ------- None Cogmind --------- Core Integrity 106/400 Matter 390/400 Energy 50/100 System Corruption 0% Temperature Cool (0) Movement Core (50) Location -9/Materials Parts ------- > --- POWER (1) -------- (None) > --- PROPULSION (3) --- (None) > --- UTILITY (3) ------ Medium Matter Pod > --- WEAPON (2) ------- (None) > --- INVENTORY (5) ---- Aluminum Leg Heat Sink Peak State ------------ > --- POWER ------------ Light Nuclear Core > --- PROPULSION ------- Wheel Wheel > --- UTILITY ---------- Heat Sink Structural Scanner > --- WEAPON ----------- EM Pulse Gun Light Assault Rifle > --- INVENTORY -------- Aluminum Leg Aluminum Leg Aluminum Leg Small Laser Welding Torch [Rating: 9] Favorites ----------- Power Light Ion Engine Engine Light Ion Engine Power Core Light Nuclear Core Propulsion Wheel Leg Aluminum Leg Wheel Wheel Utility Heat Sink Device Heat Sink Storage Medium Matter Pod Weapon EM Pulse Gun Energy Gun EM Pulse Gun Ballistic Gun Light Assault Rifle Special Weapon Welding Torch Build | -11 -10 -9 ------- Run | Yrd Mat Mat Slots Evolved 2 | . . 2 Power . | . . . Propulsion 1 | . . 1 Utility 1 | . . 1 Weapon . | . . . Parts Attached 26 | 7 13 6 Power 3 | 1 2 . Engine 2 | 1 1 . Core 1 | . 1 . Reactor . | . . . Propulsion 7 | 3 2 2 Treads . | . . . Leg 5 | 1 2 2 Wheel 2 | 2 . . Hover . | . . . Flight . | . . . Utility 4 | . 3 1 Device 3 | . 2 1 Storage 1 | . 1 . Processor . | . . . Hackware . | . . . Protection . | . . . Artifact . | . . . Weapon 12 | 3 6 3 Energy Gun 6 | 2 2 2 Energy Cannon . | . . . Ballistic Gun 2 | 1 1 . Ballistic Cannon . | . . . Launcher . | . . . Special Weapon 4 | . 3 1 Impact Weapon . | . . . Slashing Weapon . | . . . Piercing Weapon . | . . . Special Melee Weapon . | . . . Unidentified Prototypes . | . . . Parts Lost 12 | . 2 10 Power 2 | . 1 1 Propulsion 4 | . 1 3 Utility 2 | . . 2 Weapon 4 | . . 4 Highest Loss Streak 10 | . 2 10 To Critical Strikes . | . . . Average Slot Usage (%) 90 | . 93 78 Engine 7 | . 7 7 Core 4 | . 5 . Leg 13 | . 10 27 Wheel 13 | . 17 . Device 19 | . 20 17 Storage 4 | . 2 11 Energy Gun 13 | . 14 12 Ballistic Gun 7 | . 9 . Special Weapon 4 | . 4 4 Naked Turns . | . . . Heaviest Build 10 | 6 10 10 Greatest Support 30 | 20 20 30 Greatest Overweight (x) . | . . . Average Overweight (x) . | . . . Largest Inventory Capacity 5 | 5 5 5 Average Capacity 5 | 5 5 5 Most Carried 5 | 5 5 4 Average Carried 3 | 2 4 2 Final Capacity 5 | 5 5 5 Final Carried 5 | 3 5 2 Class Distribution -------------------- 87% | Mutant 12% | Scavenger-Mutant Dominant Class ---------------- Mutant | -10/Materials Scavenger-Mutant | -9/Materials Resources | -11 -10 -9 ----------- Run | Yrd Mat Mat Matter Collected 480 | 189 291 . Remotely . | . . . Salvage Created 454 | 50 344 60 Parts 22 | 1 17 4 Haulers Intercepted . | . . . Recyclers Shooed . | . . . Parts Field Recycled . | . . . Retrieved Matter . | . . . Parts Self-Destructed . | . . . Prevented . | . . . Kills | -11 -10 -9 ------- Run | Yrd Mat Mat Combat Hostiles Destroyed 8 | 1 5 2 Guns 8 | 1 5 2 Classes Destroyed 4 | 1 2 1 Worker 2 | . 2 . Watcher 2 | . 2 . Swarmer 1 | . . 1 Grunt 7 | 1 5 1 Best Kill Streak 4 | 1 4 1 Combat Bots Only 2 | 1 2 1 Max Kills in Single Turn 2 | 1 2 1 Gunslinging . | . . . Exploded . | . . . Melee . | . . . Uniques/NPCs Destroyed . | . . . Combat | -11 -10 -9 -------- Run | Yrd Mat Mat Hostile Shots Fired 141 | 2 33 106 Missed 38 | 2 7 29 Damage Taken 1183 | . 360 823 Core 389 | . 95 294 Absorbed by Shields . | . . . Core Remaining (%) 81 | 100 62 . Volleys Fired 66 | 2 40 24 Largest 2 | 2 2 2 Hottest 80 | 60 60 80 Shots Fired 117 | 4 79 34 Gun 100 | 4 71 25 Cannon . | . . . Launcher . | . . . Special 17 | . 8 9 Kinetic 34 | 2 32 . Thermal 47 | . 23 24 Explosive . | . . . Electromagnetic 36 | 2 24 10 Robot Hit Streak 12 | 4 11 12 Robot Miss Streak 4 | . 4 3 Penetration Max . | . . . Secondary Targets 2 | . 1 1 Max Gunslinging Chain 1 | . 1 1 Shots Hit Robots 66 | 4 45 17 Core Hits 26 | 2 19 5 Critical Kills . | . . . Critical Parts Destroyed . | . . . Critical Strikes . | . . . Melee Attacks . | . . . Impact . | . . . Slashing . | . . . Piercing . | . . . Sneak Attacks . | . . . Combat Hostiles . | . . . Follow-up Attacks . | . . . Damage Inflicted 830 | 81 593 156 Guns 687 | 40 510 137 Cannons . | . . . Explosions 115 | 41 74 . Melee . | . . . Ramming . | . . . Kinetic 207 | 16 191 . Thermal 322 | 41 162 119 Explosive . | . . . Electromagnetic 301 | 24 240 37 Impact . | . . . Slashing . | . . . Piercing . | . . . Highest Corruption . | . . . Average Corruption . | . . . Corruption Purged . | . . . Corruption Blocked . | . . . Overload Shots . | . . . Overflow Damage 18 | . 18 . Projectiles . | . . . Explosions 18 | . 18 . Melee . | . . . Knockbacks . | . . . Impact . | . . . Kinetic . | . . . Secondary . | . . . Self-Inflicted Damage . | . . . Shots . | . . . Rammed . | . . . Targets Rammed . | . . . Kicked . | . . . Crushed . | . . . Highest Temperature 20 | 20 20 10 Average Temperature 7 | 15 6 5 Received Heat Transfer 366 | . 204 162 Siege Activations . | . . . Robots Corrupted . | . . . Combat Hostiles . | . . . Parts Fried . | . . . Impact Corruptions . | . . . Robots Melted . | . . . Combat Hostiles . | . . . Parts Melted 1 | . 1 . Heat Transferred 825 | 50 400 375 Parts Sabotaged . | . . . Parts Stolen . | . . . Parts Stripped . | . . . Power Chain Reactions 3 | 1 2 . Alert | -11 -10 -9 ------- Run | Yrd Mat Mat Peak Influence 290 | 20 290 97 Initial 37 | . 13 37 Average 120 | 2 169 54 Maximum Alert Level 1 | . 1 . Low Security (%) 70 | 100 54 100 Level 1 29 | . 45 . Level 2 . | . . . Level 3 . | . . . Level 4 . | . . . Level 5 . | . . . High Security . | . . . Max Security . | . . . Squads Dispatched 4 | . 2 2 Investigation . | . . . Extermination . | . . . Reinforcement 4 | . 2 2 Assault . | . . . Garrison . | . . . Intercept . | . . . Searches Triggered . | . . . Construction Impeded . | . . . Haulers Reinforced . | . . . Active Scanning Responses . | . . . Cargo Convoy Interrupts . | . . . Stealth | -11 -10 -9 --------- Run | Yrd Mat Mat Distress Signals 4 | . 3 1 Communications Jammed . | . . . Distress Signals . | . . . Times Spotted 23 | 1 9 13 Peak Tracking Total 8 | 1 6 8 Tactical Retreats 4 | . 2 2 Traps | -11 -10 -9 ------- Run | Yrd Mat Mat Traps Triggered . | . . . Indirectly . | . . . Trap Hack Attempts . | . . . Triggered . | . . . Disarmed . | . . . Reprogrammed . | . . . Reused . | . . . Traps Extracted . | . . . Installed . | . . . Triggered . | . . . Machines | -11 -10 -9 ---------- Run | Yrd Mat Mat Machines Disabled . | . . . Max in Single Turn . | . . . Machines Repaired . | . . . Machines Dismantled . | . . . Machines Sabotaged . | . . . Overloaded Fab Kills . | . . . Hacking | -11 -10 -9 --------- Run | Yrd Mat Mat Machines Accessed 1 | . 1 . Terminals 1 | . 1 . Fabricators . | . . . Repair Stations . | . . . Recycling Units . | . . . Scanalyzers . | . . . Garrison Access . | . . . Total Hacks 3 | . 3 . Successful 1 | . 1 . Failed 2 | . 2 . Catastrophic . | . . . Database Lockouts . | . . . Manual . | . . . Terminals 3 | . 3 . Fabricators . | . . . Repair Stations . | . . . Recycling Units . | . . . Scanalyzers . | . . . Garrison Access . | . . . Terminal Hacks 1 | . 1 . Record 1 | . 1 . Fabricator Hacks . | . . . Repair Station Hacks . | . . . Recycling Unit Hacks . | . . . Scanalyzer . | . . . Garrison Access Hacks . | . . . Unauthorized Hacks . | . . . Terminals . | . . . Fabricators . | . . . Repair Stations . | . . . Recycling Units . | . . . Scanalyzers . | . . . Garrison Access . | . . . Data Cores Recovered . | . . . Used . | . . . Hacking Detections 1 | . 1 . Full Trace Events . | . . . Feedback Events . | . . . Feedback Blocked . | . . . Robot Schematics Acquired . | . . . Robots Built . | . . . Authchips . | . . . Time . | . . . Total Robot Build Rating . | . . . Part Schematics Acquired . | . . . Parts Built . | . . . Authchips . | . . . Time . | . . . Total Part Build Rating . | . . . Parts Repaired . | . . . Time . | . . . Parts Recycled . | . . . Recycled Matter . | . . . Retrieved Matter . | . . . Retrieved Components . | . . . Parts Scanalyzed . | . . . Part Schematics Acquired . | . . . Parts Damaged . | . . . Bothacking | -11 -10 -9 ------------ Run | Yrd Mat Mat Used RIF Installer . | . . . Robots Hacked . | . . . Non-combat . | . . . Combat . | . . . Robot Hacks Applied . | . . . Relay Couplers Released . | . . . Fabnet Peak Effective % . | . . . Robots Rewired . | . . . Allies Hacked . | . . . Hacks Repelled . | . . . Allies | -11 -10 -9 -------- Run | Yrd Mat Mat Total Allies . | . . . Largest Group . | . . . Highest-Rated Group . | . . . Highest-Rated Ally . | . . . Total Orders . | . . . Ally Attacks . | . . . Total Damage . | . . . Kills . | . . . Allies Corrupted . | . . . Allies Melted . | . . . Intel | -11 -10 -9 ------- Run | Yrd Mat Mat Robot Analysis Total . | . . . Derelict Logs Recovered . | . . . Drone Launches . | . . . Drone Recoveries . | . . . Exploration | -11 -10 -9 ------------- Run | Yrd Mat Mat Turns Passed 646 | 113 422 111 Spaces Moved 472 | 139 298 35 Core 80 | 78 . 2 Treads . | . . . Legs 125 | . 92 33 Wheels 267 | 61 206 . Hover . | . . . Flight . | . . . Fastest Speed 50 | 50 80 50 Average Speed 85 | 63 92 116 Slowest Speed 120 | 80 120 120 Overloaded Moves . | . . . Propulsion Burnouts . | . . . Robots Hopped . | . . . Cave-ins Triggered . | . . . Exploration Rate (%) 14 | 5 31 7 Regions Visited 2 Branch Regions . Pre-discovered Areas . | . . . Known Exits Taken . | . . . Unknown Exits Taken 2 | 1 1 . Scrap Searched . | . . . Spaces Dug . | . . . Terrain Destroyed 7 | . 7 . Melee . | . . . Projectile . | . . . AOE 7 | . 7 . Terrain Rammed . | . . . Walls Destroyed . | . . . Machines Disabled . | . . . Actions | -11 -10 -9 --------- Run | Yrd Mat Mat Total 597 | 159 370 68 Wait 6 | 2 2 2 Move 470 | 138 297 35 Hop . | . . . Pick Up 21 | 9 11 1 Fast Attach 1 | . 1 . Attach 15 | 5 6 4 Detach 1 | . 1 . Swap 10 | 2 6 2 Drop 7 | 1 6 . Fire 66 | 2 40 24 Melee . | . . . Ram . | . . . Kick . | . . . Crush . | . . . Escape Stasis . | . . . Rewire . | . . . Trap . | . . . Miscellaneous . | . . . Route ------- -11/Scrapyard -10/Materials (discovered 2 exits: [*Mat] / [Sub]) -9/Materials History --------- Turn | Location | Event 2 | -11/Scrapyard | Met Revision 17 93 | -11/Scrapyard | Discovered new exit (range 8) 114 | -11/Scrapyard | Entered Materials 266 | -10/Materials | Discovered new exit (range 10) 310 | -10/Materials | Build established: Mutant 515 | -10/Materials | Discovered new exit (range 7) 536 | -10/Materials | Entered another Materials area 536 | -9/Materials | Evolved 2 slots: Propulsion x1, Utility x1 639 | -9/Materials | Core integrity fell below 50% 647 | -9/Materials | Self-destructed Last Messages --------------- 00597_ Switching to secondary target: S-10 Pest. 00597_ EM Pulse Gun destroyed. 00601_ Sml. Laser destroyed. 00604_ S-10 Pest destroyed. 00606_ Lgt. Ion Engine destroyed. 00614_ Structural Scanner destroyed. 00619_ Aluminum Leg destroyed. 00621_ Welding Torch destroyed. 00626_ Heat Sink destroyed. 00626_ Aluminum Leg destroyed. 00634_ R-06 Scavenger collects Heat Sink. 00635_ O-16 Technician sends out distress signal. 00635_ O-16 Technician: "IFF HANDSHAKE FAILED. SECURING TERMINAL." 00636_ Acquired Sml. Laser. 00638_ Aluminum Leg destroyed. 00638_ ALERT: Hostiles spotted, dispatching reinforcements to Terminal M010. 00645_ Sml. Laser destroyed. Map ----- +----------------------------------------------------+ | ?????????????????????????????????????????????????? | | ?????????????????????????????????????????????????? | | ?????????????????????????????????????????????????? | | ?????????????????????????????????????????????????? | | ?????????????????????????????????????????????????? | | ?????????????????????????????????????????????????? | | ?????????????????????????????????????????????????? | | ?????????????????????????????????????????????????? | | ?????????????????????????????????????????????????? | | ?????????????????????????????????????????????????? | | ??????????????????????? ???????????????????????? | | ??????????????????????# ### ???????????????????? | | ??????????????????????# ?????????????????? | | ??????????????????????# ?????????????????? | | ??????????????????????# a #???????????????? | | ??????????????????????# !!!u ????????????????? | | ??????????????????????# ![ ?????????????????? | | ??????????????????????# ![ ?????????????????? | | ???????????????????#### ??????????????????? | | ???????????????????? ???????????????????? | | ????????????????????? ????????????????????? | | ?????????????????????? ????????????????????? | | ??????????????????????# ?????????????????????? | | ?????????????????????## ?????????????????????? | | ?????????????????????## gg#"?????????????????????? | | ??????## ??????????## @#"?????????????????????? | | ??????## ??????????## ##?????????????????????? | | ??????## # ????????##% # ?????????????????????? | | ??????## # ????????##= # ?????????????????????? | | ??????## # ????????## # ?????????????????????? | | ??????## # ????????## # ?????????????????????? | | ?????? # + ????????## # ?????????????????????? | | ?????? # # ???????### # ?????????????????????? | | ?????? + # ???????### # ?????????????????????? | | ?????? # # ???????+ # ?????????????????????? | | ?????? # # ### Y# ?????????????????????? | | ?????? # #########?## r # ?????????????????????? | | ??????## # ##### # ?????????????????????? | | ??????## # #####s= # ####?????????????? | | ######## # #### Y ##+#######?????????????? | | ######## + + % % ???????? | | # #### = ???????? | | # #### ########## ##???????? | | ############+#############??###???????? | | #################### ?????????????????????? | | #############????????????????????????????????????? | | ?????????????????????????????????????????????????? | | ?????????????????????????????????????????????????? | | ?????????????????????????????????????????????????? | | ?????????????????????????????????????????????????? | +----------------------------------------------------+ Best States ------------- Heat Dissipation 38 Energy Generation 14 Energy Capacity 160 Matter Stores 400 Matter Capacity 400 Sight Range 16 Terrain Scan Density 10 Evasion (%) 55 Item Schematics ----------------- None Robot Schematics ------------------ None Fabricated ------------ Nothing Alien Tech Used ----------------- None Achievements -------------- None Challenges ------------ None Game ------ Seed ServoSpliceBarrier Manual? 0 Play Time 00:24:14 Cumulative 1.7 hours Start 2024.04.29 @ 09:00:55 End 2024.04.29 @ 09:26:57 Sessions 1 Manual Loads 0 Difficulty Rogue Special Mode None Game No. 2 Rogue 2 Adventurer 0 Explorer 0 Win Type - Total 0 Types 0/0/0/0/0/0/0/0/0 Lore% 1 Gallery% 4 Achievement% 5 Wizard Run 0 Options --------- Layout 2 ASCII 0 Keyboard 0 Movement Arrows Keybinds 0 Fullscreen 1 Font 24/Tallcaps Map View 50x44 Zoom Use 0% Tactical HUD 1 Map Filters NONE Filters NONE Steam 1 RUN: 3abab2ea-eac2-42dc-9acb-16d912ee4c70